bitfinex-derivatives/quotes_BTCF0:USTF0_20251220
["timestamp","ask_amount","ask_price","bid_price","bid_amount"]
[1766225784676,0.011331,88302.0,88290.0,0.02836]
[1766225787481,0.0113314,88299.0,88290.0,0.02836]
[1766225787674,0.0113318,88296.0,88284.0,0.02836]
[1766225787870,0.0113322,88293.0,88281.0,0.00016991]
[1766225788065,0.0113322,88293.0,88258.0,0.19034675]
[1766225788066,0.20084346,88291.0,88256.0,1.52638156]
[1766225788274,0.02836,88292.0,88260.0,0.20084346]
[1766225788275,0.21217736,88280.0,88260.0,0.20084346]
[1766225788476,0.20084346,88280.0,88260.0,0.20084346]
[1766225788878,0.20084346,88280.0,88260.0,0.21217976]
[1766225789268,0.00016991,88279.0,88261.0,0.00016991]
[1766225789473,0.00016991,88279.0,88262.0,0.02836]
[1766225790077,0.00016991,88279.0,88263.0,0.0113359]
[1766225790381,0.00016991,88279.0,88262.0,0.02836]
[1766225793582,0.00016991,88279.0,88262.0,0.0396961]
[1766225796184,0.00016991,88279.0,88262.0,0.039696]
[1766225797283,0.00016991,88279.0,88262.0,0.02836]
[1766225798677,0.0113341,88278.0,88262.0,0.02836]
[1766225798877,0.0113344,88275.0,88262.0,0.02836]
[1766225799085,0.0113341,88278.0,88262.0,0.02836]
[1766225800879,0.0113349,88272.0,88262.0,0.02836]
[1766225801074,0.0113353,88268.0,88261.0,0.00016991]
[1766225801277,0.0113353,88268.0,88261.0,1e-08]
[1766225801477,0.0113358,88265.0,88261.0,1e-08]
[1766225801681,0.0113352,88269.0,88261.0,1e-08]
[1766225802489,0.20084346,88270.0,88261.0,1e-08]
[1766225803892,0.02836,88273.0,88261.0,1e-08]
[1766225805690,0.20084346,88271.0,88261.0,1e-08]
[1766225808691,0.21217846,88271.0,88261.0,1e-08]
[1766225809794,0.0113354,88268.0,88261.0,1e-08]
[1766225810589,0.0113357,88265.0,88261.0,1e-08]
[1766225821802,0.02836,88264.0,88261.0,1e-08]
[1766225850713,0.0113355,88267.0,88261.0,1e-08]
[1766225850919,0.0396955,88267.0,88261.0,1e-08]
[1766225852317,0.0324155,88267.0,88261.0,1e-08]
[1766225872734,0.0113355,88267.0,88261.0,1e-08]
[1766225872935,0.00564,88270.0,88261.0,1e-08]
[1766225877542,0.0113352,88269.0,88261.0,1e-08]
[1766225889665,0.20100716,88271.0,88261.0,1e-08]
[1766225890065,0.0113354,88268.0,88261.0,1e-08]
[1766225891365,0.20100716,88271.0,88261.0,1e-08]
[1766225891553,0.0113359,88264.0,88261.0,1e-08]
[1766225900371,0.02836,88265.0,88261.0,1e-08]
[1766225900573,0.0396957,88265.0,88261.0,1e-08]
[1766225906469,0.02836,88265.0,88243.0,0.00012243]
[1766225906665,0.20100716,88253.0,88232.0,1.44556]
[1766225906869,0.0113373,88253.0,88233.0,0.02836]
[1766225907383,0.20100716,88250.0,88234.0,0.00016991]
[1766225907577,0.20100716,88250.0,88234.0,0.01150951]
[1766225907778,0.00010185,88249.0,88234.0,0.01150951]
[1766225914983,0.00010185,88249.0,88237.0,0.0113392]
[1766225916180,0.00010185,88249.0,88234.0,0.00016991]
[1766225916384,5e-08,88251.0,88239.0,0.20100716]
[1766225916683,0.00016991,88252.0,88239.0,0.20100716]
[1766225916684,6e-08,88252.0,88239.0,0.20100716]
[1766225916884,6e-08,88254.0,88240.0,0.02836]
[1766225917081,0.0112954,88268.0,88240.0,0.02836]
[1766225917386,0.0113357,88265.0,88245.0,0.0113382]
[1766225917888,0.00016991,88264.0,88245.0,0.0113382]
[1766225927900,0.00016991,88264.0,88241.0,0.0113387]
[1766225928101,0.011336,88263.0,88241.0,0.0113387]
[1766225931198,0.0113364,88260.0,88241.0,0.0113387]
[1766225931404,0.02836,88259.0,88241.0,0.0113387]
[1766225932400,0.0113366,88258.0,88240.0,0.2293922]
[1766225935408,0.0113366,88258.0,88240.0,0.2407311]
[1766225942413,0.00844,88261.0,88240.0,0.2407311]
[1766225946811,0.0113364,88260.0,88240.0,0.2407311]
[1766225951518,0.0113364,88260.0,88240.0,0.24072993]
[1766225954721,0.0113367,88257.0,88240.0,0.02836]
[1766225955017,0.0113367,88257.0,88240.0,0.22939103]
[1766225955610,0.00844,88261.0,88240.0,0.22939103]
[1766225956724,0.00844,88261.0,88241.0,0.0113387]
[1766225964430,0.0113364,88260.0,88241.0,0.0113387]
[1766225966431,0.0113368,88257.0,88240.0,0.02836]
[1766225966628,0.00844,88261.0,88240.0,0.02836]
[1766225966629,0.0113372,88254.0,88240.0,0.02836]
[1766225967330,0.00844,88261.0,88240.0,0.02836]
[1766225967531,0.0113375,88252.0,88240.0,0.02836]
[1766225968231,0.0113373,88253.0,88240.0,0.02836]
[1766225969228,0.0113368,88257.0,88240.0,0.02836]
[1766225969927,0.0113372,88254.0,88240.0,0.02836]
[1766225971225,0.0113375,88251.0,88240.0,0.02836]
[1766225971734,0.0113372,88254.0,88240.0,0.02836]
[1766225972235,0.0113372,88254.0,88234.0,0.02852991]
[1766225972930,0.20103302,88260.0,88234.0,0.02852991]
[1766225973131,0.20103302,88260.0,88234.0,1e-08]
[1766225973332,0.0113385,88244.0,88234.0,1e-08]
[1766225975534,0.0113385,88244.0,88230.0,0.00016991]
[1766225977332,0.00016991,88246.0,88230.0,0.00016991]
[1766225977538,0.01150811,88246.0,88230.0,0.00016991]
[1766225980630,0.0113386,88243.0,88230.0,0.00016991]
[1766225981231,0.0113389,88240.0,88230.0,0.00016991]
[1766225981436,0.00016991,88246.0,88230.0,0.00016991]
[1766225981437,0.0113385,88244.0,88230.0,0.00016991]
[1766225982032,0.0113388,88241.0,88230.0,0.00016991]
[1766225982340,0.0113388,88241.0,88229.0,0.00836]
[1766225982832,0.0113388,88241.0,88224.0,0.02836]
[1766225983232,0.0113388,88241.0,88224.0,0.0284733]
[1766225985342,0.0113393,88238.0,88224.0,0.0284733]
[1766225985733,0.0113396,88235.0,88224.0,0.0284733]
[1766225985937,0.01134,88232.0,88224.0,0.0284733]
[1766225986338,0.20103302,88240.0,88224.0,0.0284733]
[1766225986538,0.00016991,88246.0,88224.0,0.0284733]
[1766225988439,0.0113397,88234.0,88224.0,0.0284733]
[1766225990440,0.0113397,88234.0,88224.0,0.0001133]
[1766225992947,0.02836,88238.0,88224.0,0.0001133]
[1766225994250,0.0113393,88237.0,88224.0,0.0001133]
[1766225995750,0.02836,88238.0,88224.0,0.0001133]
[1766225996152,0.01404,88237.0,88224.0,0.0001133]
[1766225999642,0.00016991,88246.0,88224.0,0.0001133]
[1766225999949,0.00976,88245.0,88225.0,0.0113408]
[1766226000253,0.0113384,88244.0,88225.0,0.0113408]
[1766226000447,0.0210983,88245.0,88225.0,0.0113408]
[1766226003356,0.0113383,88245.0,88225.0,0.0113408]
[1766226003548,0.0066,88244.0,88225.0,0.0113408]
[1766226005453,0.0113385,88243.0,88225.0,0.0113408]
[1766226005653,0.0113385,88243.0,88224.0,0.0001133]
[1766226008847,0.02836,88242.0,88224.0,0.0001133]
[1766226010862,0.0113389,88241.0,88224.0,0.0001133]
[1766226012662,0.02836,88242.0,88224.0,0.0001133]
[1766226013564,0.02836,88242.0,88224.0,0.0114542]
[1766226016961,0.0113386,88243.0,88224.0,0.0114542]
[1766226017157,0.02836,88242.0,88224.0,0.0114542]
[1766226025070,0.02836,88242.0,88224.0,0.0001133]
[1766226034880,0.0113392,88238.0,88224.0,0.0001133]
[1766226035476,0.0396988,88242.0,88224.0,0.0001133]
[1766226036784,0.02836,88241.0,88224.0,0.0001133]
[1766226040886,0.011339,88240.0,88224.0,0.0001133]
[1766226041077,0.011339,88240.0,88224.0,3.3e-06]
[1766226041278,0.21246847,88240.0,88224.0,3.3e-06]
[1766226043888,0.20112947,88240.0,88224.0,3.3e-06]
[1766226044485,0.02836,88241.0,88224.0,3.3e-06]
[1766226046990,0.0396988,88241.0,88224.0,3.3e-06]
[1766226047190,0.02836,88241.0,88224.0,3.3e-06]
[1766226047582,0.00016991,88246.0,88225.0,0.0113408]
[1766226047786,0.02836,88245.0,88225.0,0.0113408]
[1766226055890,0.02836,88245.0,88224.0,3.3e-06]
[1766226055891,0.02836,88245.0,88228.0,0.0113404]
[1766226057192,0.02836,88245.0,88230.0,0.20112947]
[1766226057699,0.01688,88245.0,88231.0,0.01134]
[1766226057998,0.00016991,88246.0,88231.0,0.01134]
[1766226058899,0.00016991,88246.0,88234.0,0.0113396]
[1766226059104,0.00016991,88246.0,88236.0,0.20112947]
[1766226068510,0.00016991,88246.0,88237.0,0.0113393]
[1766226069711,0.00016991,88246.0,88236.0,0.20105429]
[1766226070512,0.00016991,88246.0,88235.0,0.02836]
[1766226070513,0.0113387,88242.0,88237.0,0.02836]
[1766226070705,0.00016991,88246.0,88237.0,0.02836]
[1766226071609,0.00016991,88246.0,88230.0,0.20105429]
[1766226071808,0.00016991,88246.0,88231.0,0.02836]
[1766226072210,0.01150811,88246.0,88231.0,0.02836]
[1766226073516,0.00016991,88246.0,88231.0,0.02836]
[1766226076805,0.00016991,88246.0,88227.0,0.02836]
[1766226077416,0.0113387,88242.0,88227.0,0.02836]
[1766226077619,0.0113391,88239.0,88227.0,0.02836]
[1766226078410,0.0113395,88236.0,88225.0,0.02836]
[1766226079814,0.0113399,88233.0,88225.0,0.02836]
[1766226080720,0.0113392,88238.0,88225.0,0.02836]
[1766226082315,0.0113396,88235.0,88225.0,0.02836]
[1766226082711,0.01134,88232.0,88213.0,1.44592]
[1766226082923,0.01134,88232.0,88214.0,0.02836]
[1766226090026,0.0113395,88236.0,88214.0,0.02836]
[1766226092926,0.0113399,88233.0,88214.0,0.02836]
[1766226093126,0.0113395,88236.0,88215.0,0.011342]
[1766226093723,0.0113395,88236.0,88214.0,0.02836]
[1766226094329,0.0113395,88236.0,88214.0,0.0397022]
[1766226094830,0.0113395,88236.0,88217.0,0.0113418]
[1766226097932,0.011339,88240.0,88217.0,0.0113418]
[1766226098131,0.0113393,88237.0,88217.0,0.0113418]
[1766226102835,0.0113393,88237.0,88214.0,0.02836]
[1766226103430,0.0113397,88234.0,88214.0,0.02836]
[1766226104647,0.0113391,88239.0,88216.0,0.011342]
[1766226104847,0.0113394,88236.0,88216.0,0.011342]
[1766226107952,0.0113394,88236.0,88214.0,0.02836]
[1766226108850,0.0113399,88233.0,88214.0,0.02836]
[1766226112157,0.0113402,88230.0,88214.0,0.02836]
[1766226116455,0.00564,88245.0,88214.0,0.02836]
[1766226116652,0.02570317,88244.0,88214.0,0.02836]
[1766226116848,0.02570317,88243.0,88214.0,0.02836]
[1766226117049,0.02570317,88242.0,88214.0,0.02836]
[1766226117348,0.02570317,88241.0,88214.0,0.02836]
[1766226117648,0.02570317,88240.0,88214.0,0.02836]
[1766226117849,0.02570317,88239.0,88214.0,0.02836]
[1766226118049,0.02570317,88238.0,88214.0,0.02836]
[1766226118252,0.0113398,88234.0,88214.0,0.02836]
[1766226118650,0.0113396,88235.0,88215.0,0.011342]
[1766226119056,0.0113396,88235.0,88214.0,0.02836]
[1766226121260,0.0113396,88235.0,88216.0,0.011342]
[1766226121455,0.0113396,88235.0,88214.0,0.02836]
[1766226121654,0.01134,88232.0,88214.0,0.02836]
[1766226121855,0.0113397,88234.0,88214.0,0.02836]
[1766226122059,0.0113397,88234.0,88214.0,0.0397022]
[1766226122259,0.0113397,88234.0,88220.0,0.20115832]
[1766226123867,0.0113397,88234.0,88214.0,0.0397022]
[1766226124661,0.0113401,88231.0,88214.0,0.02836]
[1766226125054,0.0113396,88235.0,88214.0,0.02836]
[1766226126563,0.0113396,88235.0,88215.0,0.0113421]
[1766226127059,0.0113396,88235.0,88214.0,0.02836]
[1766226128865,0.0113399,88232.0,88214.0,0.02836]
[1766226133463,0.0113399,88232.0,88220.0,0.20115654]
[1766226134169,0.0113401,88231.0,88220.0,0.20115654]
[1766226136773,0.0113396,88235.0,88220.0,0.20115654]
[1766226138870,0.0113399,88233.0,88220.0,0.20115654]
[1766226140266,0.0056,88236.0,88220.0,0.20115654]
[1766226140478,0.0056,88236.0,88219.0,0.02836]
[1766226140773,0.0113396,88235.0,88219.0,0.02836]
[1766226141272,0.0113396,88235.0,88220.0,0.20114925]
[1766226141878,0.008,88237.0,88220.0,0.20114925]
[1766226142071,0.0113394,88236.0,88220.0,0.20114925]
[1766226145477,0.0113394,88236.0,88219.0,0.02836]
[1766226145787,0.0113398,88233.0,88220.0,0.20114925]
[1766226147285,0.0204194,88237.0,88220.0,0.20114925]
[1766226150690,0.0113397,88234.0,88220.0,0.20114925]
[1766226152979,0.00908,88237.0,88220.0,0.20114925]
[1766226153488,0.0113394,88236.0,88220.0,0.20114925]
[1766226154289,0.0113394,88236.0,88219.0,0.02836]
[1766226155288,0.00952,88237.0,88219.0,0.0397016]
[1766226155483,0.00952,88237.0,88219.0,0.02836]
[1766226157187,0.0113394,88236.0,88219.0,0.02836]
[1766226160294,0.00952,88237.0,88219.0,0.02836]
[1766226163182,0.0208593,88237.0,88219.0,0.02836]
[1766226163377,0.00952,88237.0,88219.0,0.02836]
[1766226163581,0.00952,88237.0,88220.0,0.0113415]
[1766226164891,0.00952,88237.0,88219.0,0.02836]
[1766226165287,0.00952,88237.0,88219.0,0.0397016]
[1766226165992,0.0113395,88236.0,88219.0,0.02836]
[1766226166792,0.00952,88237.0,88219.0,0.0397015]
[1766226167190,0.0208593,88237.0,88219.0,0.0397015]
[1766226167487,0.0208593,88237.0,88219.0,0.02836]
[1766226167694,0.0208593,88237.0,88219.0,0.0397016]
[1766226169208,0.00952,88237.0,88219.0,0.0397016]
[1766226170102,0.00016991,88246.0,88219.0,0.02836]
[1766226170306,0.02590447,88245.0,88230.0,0.20114925]
[1766226170506,0.03994447,88244.0,88230.0,0.20114925]
[1766226170713,0.02590447,88243.0,88230.0,0.20114925]
[1766226171006,0.02590447,88242.0,88230.0,0.20114925]
[1766226171198,0.02590447,88241.0,88230.0,0.20114925]
[1766226171399,0.02590447,88240.0,88230.0,0.20114925]
[1766226171599,0.0113385,88243.0,88230.0,0.20114925]
[1766226171800,0.02590198,88242.0,88230.0,0.20114925]
[1766226172011,0.02590198,88241.0,88230.0,0.20114925]
[1766226172208,0.02590198,88240.0,88224.0,0.0113409]
[1766226172409,0.0113385,88243.0,88230.0,0.20114925]
[1766226172709,0.02590092,88242.0,88230.0,0.20114925]
[1766226172905,0.02590092,88241.0,88230.0,0.20114925]
[1766226173103,0.01404,88244.0,88230.0,0.20114925]
[1766226173402,0.00016991,88246.0,88230.0,0.20114925]
[1766226173602,0.0113381,88247.0,88236.0,0.20114925]
[1766226173798,0.0113381,88247.0,88230.0,0.20114925]
[1766226174704,0.01150811,88247.0,88230.0,0.20131926]
[1766226177711,0.01150811,88247.0,88230.0,0.20126311]
[1766226178410,0.0113384,88244.0,88230.0,0.20126311]
[1766226179501,0.00017001,88247.0,88230.0,0.20126311]
[1766226181910,0.0113382,88246.0,88230.0,0.20126311]
[1766226182112,0.011339,88240.0,88230.0,0.20126311]
[1766226184820,0.00017001,88247.0,88230.0,0.20126311]
[1766226184821,0.0113385,88244.0,88230.0,0.20126311]
[1766226188220,0.0113385,88244.0,88230.0,0.00017001]
[1766226188420,0.0113385,88244.0,88230.0,0.20126311]
[1766226191723,0.0113387,88242.0,88230.0,0.20126311]
[1766226192827,0.0113387,88242.0,88231.0,0.02836]
[1766226201128,0.00017001,88247.0,88231.0,0.02836]
[1766226201330,0.02598913,88246.0,88231.0,0.02836]
[1766226201533,0.02598913,88245.0,88231.0,0.02836]
[1766226201726,0.02598913,88244.0,88231.0,0.02836]
[1766226201931,0.02598913,88243.0,88231.0,0.02836]
[1766226202126,0.02598913,88242.0,88231.0,0.02836]
[1766226202324,0.00017001,88247.0,88231.0,0.02836]
[1766226202530,0.02599052,88246.0,88231.0,0.02836]
[1766226202729,0.02599052,88245.0,88231.0,0.02836]
[1766226203032,0.02599052,88244.0,88231.0,0.02836]
[1766226203333,0.00017001,88247.0,88231.0,0.02836]
[1766226203334,0.0113388,88242.0,88231.0,0.02836]
[1766226204938,0.02599223,88241.0,88231.0,0.02836]
[1766226205236,0.0113388,88242.0,88231.0,0.02836]
[1766226205424,0.02599237,88241.0,88231.0,0.02836]
[1766226205629,0.0113391,88239.0,88231.0,0.02836]
[1766226206637,0.0113385,88244.0,88231.0,0.02836]
[1766226206840,0.0113387,88242.0,88231.0,0.02836]
[1766226207026,0.02599226,88241.0,88231.0,0.02836]
[1766226207227,0.02599226,88240.0,88231.0,0.02836]
[1766226207428,0.0113387,88242.0,88231.0,0.02836]
[1766226207725,0.02599215,88241.0,88231.0,0.02836]
[1766226207924,0.02599215,88240.0,88231.0,0.02836]
[1766226208137,0.0113387,88242.0,88231.0,0.02836]
[1766226208328,0.02599217,88241.0,88231.0,0.02836]
[1766226208634,0.02599217,88240.0,88230.0,0.00017001]
[1766226208836,0.0113387,88242.0,88230.0,0.00017001]
[1766226209033,0.02599222,88241.0,88230.0,0.00017001]
[1766226209236,0.02599222,88240.0,88230.0,0.00017001]
[1766226209532,0.0113387,88242.0,88230.0,0.00017001]
[1766226209733,0.02599232,88241.0,88230.0,0.00017001]
[1766226209932,0.02599232,88240.0,88230.0,0.00017001]
[1766226210132,0.0113387,88242.0,88230.0,0.00017001]
[1766226210326,0.0259923,88241.0,88230.0,0.00017001]
[1766226210532,0.0259923,88240.0,88230.0,0.00017001]
[1766226210734,0.01204,88246.0,88230.0,0.00017001]
[1766226210935,0.02599246,88245.0,88230.0,0.00017001]
[1766226211228,0.0113391,88239.0,88230.0,0.00017001]
[1766226211834,0.01204,88246.0,88230.0,0.00017001]
[1766226211835,0.01204,88246.0,88230.0,1e-08]
[1766226212034,0.02599285,88245.0,88225.0,1e-08]
[1766226212233,0.02599285,88244.0,88225.0,1e-08]
[1766226212430,0.02599285,88243.0,88225.0,1e-08]
[1766226212633,0.02599285,88242.0,88225.0,1e-08]
[1766226212830,0.02599285,88241.0,88225.0,1e-08]
[1766226213030,0.02599285,88240.0,88225.0,1e-08]
[1766226213230,0.02599285,88239.0,88225.0,1e-08]
[1766226213432,0.01204,88246.0,88225.0,1e-08]
[1766226213627,0.0259894,88245.0,88225.0,1e-08]
[1766226213936,0.0259894,88244.0,88225.0,1e-08]
[1766226214126,0.0259894,88243.0,88225.0,1e-08]
[1766226214326,0.0113394,88237.0,88220.0,0.20110981]
[1766226214532,0.0113394,88237.0,88220.0,0.20114007]
[1766226217731,0.0113394,88237.0,88220.0,0.20110007]
[1766226217932,0.0113397,88234.0,88220.0,0.20110007]
[1766226218434,0.0113397,88234.0,88219.0,0.02836]
[1766226218832,0.0113403,88229.0,88218.0,0.02836]
[1766226220641,0.00017001,88232.0,88218.0,0.02836]
[1766226221741,0.0113405,88228.0,88218.0,0.02836]
[1766226223642,0.00017001,88232.0,88218.0,0.02836]
[1766226224738,0.0113405,88228.0,88218.0,0.02836]
[1766226228144,0.00017001,88232.0,88218.0,0.02836]
[1766226228738,0.0113404,88229.0,88218.0,0.02836]
[1766226228944,0.00017001,88232.0,88214.0,0.02836]
[1766226230348,0.0113405,88228.0,88214.0,0.02836]
[1766226232232,0.0113409,88225.0,88214.0,0.02836]
[1766226247153,0.00017001,88232.0,88214.0,0.02836]
[1766226247747,0.0113414,88221.0,88212.0,0.02836]
[1766226247943,0.00017001,88232.0,88207.0,9.992e-05]
[1766226247944,0.20114007,88230.0,88207.0,9.992e-05]
[1766226248152,0.40228014,88220.0,88186.0,0.08134156]
[1766226248347,0.40228014,88220.0,88180.0,0.20114007]
[1766226248348,0.0113432,88207.0,88180.0,0.20114007]
[1766226248652,0.0113432,88207.0,88181.0,0.02524]
[1766226248847,0.02836,88208.0,88190.0,0.20114007]
[1766226249055,0.0113432,88207.0,88190.0,0.20114007]
[1766226249360,0.01143213,88207.0,88190.0,0.20114007]
[1766226249950,0.0113436,88204.0,88184.0,0.02836]
[1766226250154,0.0113436,88204.0,88174.0,0.0113474]
[1766226250361,0.011344,88201.0,88180.0,0.20114007]
[1766226250752,0.011344,88201.0,88180.0,0.20132534]
[1766226252557,8.893e-05,88207.0,88171.0,0.0113477]
[1766226252757,8.893e-05,88207.0,88172.0,0.00224]
[1766226252957,8.893e-05,88207.0,88180.0,0.20132534]
[1766226253157,8.893e-05,88207.0,88181.0,0.0284]
[1766226253550,0.0113453,88191.0,88170.0,0.20132534]
[1766226253755,0.00017001,88189.0,88171.0,0.0284]
[1766226263066,0.00017001,88189.0,88172.0,0.0113476]
[1766226263464,0.00017001,88189.0,88171.0,0.0397477]
[1766226264267,0.00017001,88189.0,88179.0,0.20136995]
[1766226264969,0.00017001,88189.0,88171.0,0.0397477]
[1766226265171,0.00017001,88189.0,88179.0,0.20136995]
[1766226267167,1e-08,88189.0,88179.0,0.20136995]
[1766226267368,1e-08,88189.0,88175.0,0.00017001]
[1766226268667,0.0113461,88184.0,88175.0,1e-08]
[1766226268867,0.00013066,88183.0,88175.0,1e-08]
[1766226274673,0.02853066,88183.0,88175.0,1e-08]
[1766226276375,0.00013066,88183.0,88175.0,1e-08]
[1766226276576,0.02853066,88183.0,88175.0,1e-08]
[1766226276972,6.6e-07,88183.0,88175.0,1e-08]
[1766226277176,1e-08,88189.0,88175.0,1e-08]
[1766226277482,1e-08,88189.0,88179.0,0.20136995]
[1766226278683,0.0113408,88226.0,88180.0,0.0284]
[1766226278979,0.20136995,88210.0,88189.0,0.20136995]
[1766226279167,0.0113431,88208.0,88189.0,0.20136995]
[1766226279375,0.02540117,88207.0,88189.0,0.20136995]
[1766226279583,0.0113431,88208.0,88185.0,0.0113459]
[1766226279882,0.00017011,88205.0,88190.0,0.20136995]
[1766226280485,0.0284,88204.0,88190.0,0.20136995]
[1766226284676,0.0284,88204.0,88191.0,0.0113452]
[1766226284979,0.0284,88204.0,88190.0,0.20136995]
[1766226284980,0.0284,88204.0,88194.0,0.0113448]
[1766226285778,0.01577011,88205.0,88194.0,0.20136995]
[1766226285981,0.01577011,88205.0,88190.0,0.21271525]
[1766226288384,0.01577011,88205.0,88190.0,0.21262791]
[1766226289782,0.0113447,88195.0,88176.0,0.0284]
[1766226289991,0.0113447,88195.0,88171.0,0.00712]
[1766226289992,0.20128261,88190.0,88171.0,0.00712]
[1766226290191,0.00017011,88189.0,88171.0,0.00712]
[1766226290490,0.00017011,88189.0,88179.0,0.20128261]
[1766226290882,0.0113456,88188.0,88170.0,0.20128261]
[1766226291077,0.0113456,88188.0,88171.0,0.0284]
[1766226291479,0.0113462,88184.0,88171.0,0.0284]
[1766226291681,0.01151561,88189.0,88171.0,0.0284]
[1766226294191,0.0113461,88185.0,88171.0,0.0284]
[1766226297994,0.00017011,88189.0,88171.0,0.0284]
[1766226299290,0.0113457,88188.0,88171.0,0.0284]
[1766226299690,0.21262911,88181.0,88163.0,0.0284]
[1766226299895,0.0113465,88181.0,88163.0,0.0284]
[1766226300196,0.011347,88178.0,88163.0,0.0284]
[1766226300587,0.0113464,88182.0,88163.0,0.0284]
[1766226301584,0.20128261,88180.0,88163.0,0.0284]
[1766226302298,0.0113464,88182.0,88163.0,0.0284]
[1766226302695,0.20128261,88180.0,88163.0,0.0284]
[1766226302998,0.0113464,88182.0,88163.0,0.0284]
[1766226303197,0.0284,88184.0,88163.0,0.0284]
[1766226303398,0.0397462,88184.0,88170.0,0.20128261]
[1766226303697,0.0397462,88184.0,88163.0,0.0284]
[1766226304098,0.0397462,88184.0,88170.0,0.20128261]
[1766226306596,0.0284,88184.0,88170.0,0.20128261]
[1766226307994,0.0284,88183.0,88170.0,0.20128261]
[1766226308198,0.0184,88183.0,88170.0,0.20128261]
[1766226308903,0.0184,88183.0,88165.0,0.0113485]
[1766226309105,0.0184,88183.0,88170.0,0.20128261]
[1766226310105,0.00017011,88189.0,88170.0,0.20128261]
[1766226310404,0.00148,88190.0,88179.0,0.20128261]
[1766226310591,0.0113439,88202.0,88179.0,0.20128261]
[1766226310796,0.0284,88201.0,88190.0,0.20128261]
[1766226311196,0.0284,88201.0,88179.0,0.21262931]
[1766226311396,0.00017011,88199.0,88181.0,0.00017011]
[1766226311596,0.00017011,88199.0,88190.0,0.20128261]
[1766226311995,0.00017011,88199.0,88181.0,0.00017011]
[1766226312201,0.00017011,88199.0,88189.0,0.20128261]
[1766226312899,0.0284,88201.0,88189.0,0.20128261]
[1766226313604,0.0113432,88207.0,88189.0,0.20128261]
[1766226313798,0.05355703,88206.0,88183.0,0.0284]
[1766226313999,0.0284,88206.0,88190.0,0.20128261]
[1766226314210,0.0113434,88205.0,88190.0,0.20128261]
[1766226315205,0.0113434,88205.0,88183.0,0.0284]
[1766226315899,0.0284,88206.0,88183.0,0.0284]
[1766226316103,0.0284,88206.0,88190.0,0.20130811]
[1766226316304,0.00017011,88207.0,88190.0,0.20130811]
[1766226316504,0.01412,88206.0,88190.0,0.20130811]
[1766226318008,0.0254633,88206.0,88190.0,0.20130811]
[1766226319008,0.0113438,88203.0,88188.0,0.0284]
[1766226319602,0.0113438,88203.0,88183.0,0.0284]
[1766226319802,0.01412,88206.0,88183.0,0.0284]
[1766226320204,0.0113444,88198.0,88183.0,0.0284]
[1766226320804,0.0113447,88195.0,88183.0,0.0284]
[1766226321511,0.0113452,88192.0,88181.0,0.00017011]
[1766226321909,0.0113456,88189.0,88180.0,1e-08]
[1766226322207,0.00744,88196.0,88176.0,0.0284]
[1766226322401,0.00744,88196.0,88170.0,0.00884]
[1766226322602,0.02516102,88195.0,88169.0,0.00276]
[1766226322804,0.0113461,88184.0,88160.0,0.20130811]
[1766226323018,0.00017011,88181.0,88163.0,0.00017011]
[1766226323206,0.0113466,88180.0,88163.0,0.00017011]
[1766226323508,0.0113475,88174.0,88163.0,0.00017011]
[1766226323813,0.011347,88178.0,88163.0,0.00017011]
[1766226325506,0.20145796,88180.0,88163.0,0.00017011]
[1766226326306,0.0113468,88179.0,88163.0,0.00017011]
[1766226327818,0.20145796,88180.0,88163.0,0.00017011]
[1766226328008,0.21280466,88180.0,88163.0,0.00017011]
[1766226328909,0.00017011,88181.0,88163.0,0.00017011]
[1766226329606,0.02148,88180.0,88163.0,0.00017011]
[1766226330814,0.02148,88180.0,88163.0,0.01151881]
[1766226331012,0.00017011,88181.0,88169.0,0.011348]
[1766226331212,0.01,88180.0,88165.0,0.0113485]
[1766226333415,0.00017011,88181.0,88165.0,0.0113485]
[1766226336222,0.00017011,88181.0,88164.0,0.0397486]
[1766226337120,0.00017011,88181.0,88167.0,0.0113483]
[1766226339716,0.00017011,88181.0,88164.0,0.0284]
[1766226341319,0.00017011,88181.0,88165.0,0.0113485]
[1766226344426,1.1e-07,88181.0,88165.0,0.0113485]
[1766226345128,1.1e-07,88181.0,88164.0,0.0284]
[1766226345129,1.1e-07,88181.0,88170.0,0.20145796]
[1766226345328,1.1e-07,88181.0,88174.0,0.0113474]
[1766226348632,1.1e-07,88181.0,88177.0,0.011347]
[1766226350935,1.1e-07,88181.0,88173.0,0.0113475]
[1766226352921,1.1e-07,88181.0,88176.0,0.0113471]
[1766226360140,0.0115443,88198.0,88182.0,0.0113463]
[1766226360141,0.0002,88198.0,88182.0,0.0113463]
[1766226360342,0.06119129,88219.0,88188.0,0.20145796]
[1766226360534,0.00152,88205.0,88188.0,0.20145796]
[1766226361430,0.00169011,88205.0,88188.0,0.00017011]
[1766226361946,0.00169011,88205.0,88188.0,0.02857011]
[1766226368746,0.00169011,88205.0,88189.0,0.0113454]
[1766226369547,0.00169011,88205.0,88188.0,0.02857011]
[1766226371752,0.00169011,88205.0,88188.0,0.03991561]
[1766226372551,0.00169011,88205.0,88188.0,0.02857011]
[1766226373945,0.00169011,88205.0,88190.0,0.20130526]
[1766226377354,0.00169011,88205.0,88190.0,0.20128798]
[1766226378356,0.00169011,88205.0,88195.0,0.20128798]
[1766226378562,0.0284,88208.0,88195.0,0.20128798]
[1766226378861,0.02507186,88207.0,88198.0,0.20128798]
[1766226379056,0.0284,88208.0,88198.0,0.20128798]
[1766226379263,0.02507187,88207.0,88198.0,0.20128798]
[1766226379456,0.0284,88208.0,88198.0,0.20128798]
[1766226379657,0.02507249,88207.0,88198.0,0.20128798]
[1766226379855,0.0284,88208.0,88198.0,0.20128798]
[1766226380058,0.02507249,88207.0,88198.0,0.20128798]
[1766226380258,0.0284,88208.0,88198.0,0.20128798]
[1766226380457,0.02507349,88207.0,88198.0,0.20128798]
[1766226380655,0.0284,88208.0,88198.0,0.20128798]
[1766226380962,0.02507352,88207.0,88198.0,0.20128798]
[1766226381163,0.0284,88208.0,88198.0,0.20128798]
[1766226381455,0.02507472,88207.0,88198.0,0.20128798]
[1766226381662,0.039743,88208.0,88188.0,0.02857011]
[1766226381864,0.02507472,88207.0,88198.0,0.20128798]
[1766226382065,0.039743,88208.0,88198.0,0.20128798]
[1766226382263,0.02507497,88207.0,88198.0,0.20128798]
[1766226382563,0.039743,88208.0,88198.0,0.20128798]
[1766226382753,0.02507628,88207.0,88198.0,0.20128798]
[1766226382957,0.039743,88208.0,88198.0,0.20128798]
[1766226383261,0.02507628,88207.0,88198.0,0.20128798]
[1766226383461,0.039743,88208.0,88198.0,0.20128798]
[1766226383654,0.02507805,88207.0,88198.0,0.20128798]
[1766226383854,0.039743,88208.0,88198.0,0.20128798]
[1766226384056,0.0113433,88206.0,88198.0,0.20128798]